bitfinex/quotes_ETHUSD_20250711
["timestamp","ask_amount","ask_price","bid_price","bid_amount"]
[1752214447378,20.26216,3006.9,3006.8,5.344]
[1752214449398,18.1416,3006.9,3006.8,15.344]
[1752214449608,17.76,3006.9,3006.8,15.344]
[1752214450608,17.76,3006.9,3006.8,16.8539]
[1752214450908,17.76,3006.9,3006.8,17.5695]
[1752214451474,17.76,3006.9,3006.8,17.5685]
[1752214451806,17.76,3006.9,3006.8,19.5555]
[1752214452107,18.87,3006.9,3006.8,19.5555]
[1752214452957,18.87,3006.9,3006.8,17.0185]
[1752214454166,18.87,3006.9,3006.8,19.3899]
[1752214454505,19.98,3006.9,3006.8,19.3899]
[1752214455482,7.45108331,3006.9,3006.8,19.3899]
[1752214455683,7.28504703,3006.9,3006.8,19.3899]
[1752214456083,7.11901075,3006.9,3006.8,19.3899]
[1752214456481,6.95297447,3006.9,3006.8,19.3899]
[1752214456988,7.89693819,3006.9,3006.8,46.578206]
[1752214457194,7.89693819,3006.9,3006.8,46.174004]
[1752214457195,7.73090191,3006.9,3006.8,46.174004]
[1752214457398,7.73090191,3006.9,3006.8,38.567455]
[1752214457602,1.35010751,3006.9,3006.8,37.40995679]
[1752214457910,1.35010751,3006.9,3006.8,48.23240179]
[1752214458207,2.21767426,3007.4,3007.3,0.55]
[1752214458395,2.21767426,3007.4,3007.3,26.58369303]
[1752214458719,2.05163798,3007.4,3007.3,32.73806503]
[1752214458871,2.05163798,3007.4,3007.3,30.73981203]
[1752214459076,1.8856017,3007.4,3007.3,28.57069303]
[1752214459294,2.82956542,3007.4,3007.3,28.57069303]
[1752214459903,2.66352914,3007.4,3007.3,28.57069303]
[1752214460106,2.49749286,3007.4,3007.3,28.57069303]
[1752214460986,2.49749286,3007.4,3007.3,15.887]
[1752214461182,2.33145658,3007.4,3007.3,5.885]
[1752214461412,1.11,3008.0,3007.9,10.55]
[1752214461600,0.001,3009.1,3008.0,15.575986]
[1752214461797,0.001,3009.1,3008.0,10.55]
[1752214462094,0.94401443,3008.1,3008.0,12.537]
[1752214462488,0.77802886,3008.1,3008.0,12.537]
[1752214462691,0.77802886,3008.1,3008.0,32.797674]
[1752214462884,0.54384329,3008.1,3008.0,32.797674]
[1752214463090,0.54384329,3008.1,3008.0,24.01095]
[1752214463291,0.37785772,3008.1,3008.0,21.088822]
[1752214463708,0.001,3009.1,3008.1,23.642592]
[1752214463884,3.33,3008.3,3008.2,41.97107847]
[1752214464087,0.001,3009.1,3008.3,10.55]
[1752214464289,0.001,3009.1,3008.6,23.39929303]
[1752214464486,0.001,3009.1,3008.6,34.06629303]
[1752214464926,0.001,3009.1,3008.9,0.7156]
[1752214465113,0.001,3009.1,3008.9,21.3826]
[1752214465633,0.001,3009.1,3009.0,12.18178697]
[1752214465920,0.001,3009.1,3009.0,10.55]
[1752214466092,0.001,3009.1,3009.0,12.537]
[1752214466289,0.001,3009.1,3009.0,16.036]
[1752214466490,1.111,3009.1,3009.0,12.537]
[1752214467319,1.111,3009.1,3009.0,0.55]
[1752214467691,1.111,3009.1,3009.0,10.0]
[1752214468929,2.221,3009.1,3009.0,10.0]
[1752214471289,3.331,3009.1,3009.0,10.0]
[1752214471690,3.331,3009.1,3008.9,0.58672616]
[1752214471896,3.331,3009.1,3009.0,5.329]
[1752214472097,3.331,3009.1,3008.9,0.58672616]
[1752214472397,3.331,3009.1,3009.0,15.329]
[1752214472623,3.331,3009.1,3009.0,10.0]
[1752214472805,3.331,3009.1,3009.0,15.328]
[1752214473005,3.331,3009.1,3009.0,10.0]
[1752214473405,3.331,3009.1,3009.0,15.328]
[1752214473607,3.82508,3009.1,3008.9,0.1656]
[1752214473806,1.64305258,3009.0,3008.7,0.16717924]
[1752214474030,1.64305258,3009.0,3008.8,5.4936]
[1752214474424,1.64305258,3009.0,3008.9,15.327]
[1752214474631,1.64305258,3009.0,3008.6,0.16682307]
[1752214474632,12.33974561,3009.0,3008.6,0.16682307]
[1752214474809,1.5595,3008.8,3008.7,5.327]
[1752214475004,1.5595,3008.8,3008.6,0.16682307]
[1752214475005,1.59275258,3008.8,3008.6,0.16682307]
[1752214475320,1.5595,3008.8,3008.7,15.327]
[1752214475650,1.7251,3008.8,3008.7,5.327]
[1752214476212,2.8942,3008.8,3008.7,5.327]
[1752214476410,1.6186,3008.7,3008.0,0.1656]
[1752214476639,0.1656,3008.5,3008.1,5.327]
[1752214476942,1.6186,3008.4,3008.2,10.0]
[1752214477110,1.6186,3008.4,3008.3,15.327]
[1752214477311,1.6186,3008.4,3008.3,10.0]
[1752214477518,1.6186,3008.4,3008.3,15.327]
[1752214477722,1.79702,3008.4,3008.3,10.0]
[1752214477923,1.79702,3008.4,3008.3,15.326]
[1752214478865,2.64183756,3008.8,3008.3,15.326]
[1752214478866,1.11,3008.8,3008.7,1.27790575]
[1752214479034,0.001,3010.4,3009.6,1.987]
[1752214479224,1.6171,3012.0,3010.2,10.55]
[1752214479555,1.6171,3012.0,3010.4,10.55]
[1752214479880,0.03325258,3011.9,3010.6,10.55]
[1752214480026,0.03325258,3011.9,3010.8,10.0]
[1752214480360,0.03325258,3011.9,3011.0,10.0]
[1752214480559,0.03325258,3011.9,3011.2,10.0]
[1752214480726,0.03325258,3011.9,3011.4,10.0]
[1752214480925,0.03325258,3011.9,3011.6,10.0]
[1752214481125,1.14325258,3011.9,3011.6,10.0]
[1752214481359,0.27603526,3011.8,3011.6,10.0]
[1752214481675,0.03325258,3011.7,3011.6,10.0]
[1752214483074,1.54245258,3011.7,3011.6,10.0]
[1752214483251,1.54245258,3011.7,3011.5,10.699]
[1752214483624,2.65245258,3011.7,3011.5,10.699]
[1752214483838,0.29284878,3011.6,3011.5,10.699]
[1752214484080,1.5612,3011.5,3011.2,10.0]
[1752214484273,0.03325258,3011.4,3010.8,7.963]
[1752214484429,0.03325258,3011.4,3009.5,0.55]
[1752214484430,0.03325258,3011.4,3011.0,10.0]
[1752214485326,0.03325258,3011.4,3011.1,10.686]
[1752214485526,0.55,3011.3,3011.1,10.686]
[1752214485727,1.54505258,3011.2,3011.1,10.686]
[1752214485945,1.75455784,3011.2,3011.1,10.686]
[1752214486259,2.86455784,3011.2,3010.9,7.963]
[1752214486460,2.83130526,3011.2,3010.9,7.963]
[1752214486638,0.03325258,3011.1,3010.9,7.963]
[1752214486841,2.83130526,3011.2,3011.0,10.0]
[1752214487157,0.28313053,3011.1,3011.0,10.0]
[1752214487361,0.28313053,3011.1,3011.0,20.683]
[1752214488545,1.39313053,3011.1,3011.0,20.683]
[1752214488744,1.11,3011.1,3011.0,20.683]
[1752214491173,2.22,3011.1,3011.0,20.683]
[1752214493442,3.33,3011.1,3011.0,20.683]
[1752214493665,3.331,3011.1,3011.0,20.683]
[1752214495171,2.0944,3011.0,3010.9,10.649]
[1752214495476,2.0944,3011.0,3009.7,7.962]
[1752214495477,0.55,3010.9,3009.7,7.962]
[1752214495684,0.55,3010.9,3009.8,10.0]
[1752214495863,0.55,3010.9,3009.7,7.962]
[1752214495864,0.55,3010.7,3009.7,7.962]
[1752214496038,1.5644,3010.6,3009.7,8.21260039]
[1752214496241,0.21144,3010.5,3009.7,8.21260039]
[1752214496576,1.6643,3010.3,3009.7,8.21260039]
[1752214496780,0.55,3010.2,3009.8,10.651]
[1752214497084,0.55,3010.2,3009.9,10.0]
[1752214497402,1.6643,3010.3,3010.0,10.65]
[1752214498360,2.7743,3010.3,3010.0,10.65]
[1752214500681,3.05173,3010.3,3010.0,10.65]
[1752214500884,0.55,3010.1,3010.0,10.65]
[1752214501094,2.1886,3010.1,3010.0,10.65]
[1752214501442,1.6386,3010.2,3009.0,0.002]
[1752214501660,0.55,3010.1,3009.0,0.002]
[1752214501950,1.6386,3009.9,3009.0,0.002]
[1752214502282,0.55,3009.8,3009.0,0.002]
[1752214502683,1.6386,3009.9,3009.1,5.343]
[1752214502884,3.8692,3010.3,3009.3,0.3519]
[1752214503087,3.8692,3010.3,3009.5,10.0]
[1752214503300,4.9792,3010.3,3009.7,10.0]
[1752214503583,4.9792,3010.3,3009.9,10.0]
[1752214503755,4.9792,3010.3,3010.0,5.342]
[1752214504663,5.47712,3010.3,3010.0,5.342]
[1752214504977,1.6611,3010.2,3009.7,5.339]
[1752214505178,1.6611,3010.2,3009.8,5.339]
[1752214505378,0.1656,3009.9,3009.8,5.339]
[1752214506279,1.7737,3009.9,3009.8,5.339]
[1752214506445,1.95107,3009.9,3009.8,5.339]
[1752214506645,1.92906661,3009.9,3009.8,5.339]
[1752214507050,2.47906661,3009.9,3009.8,5.339]
[1752214507279,1.92906661,3009.9,3009.8,5.339]
[1752214507871,1.75169661,3009.9,3009.8,5.339]
[1752214508070,2.86169661,3009.9,3009.8,5.339]
[1752214509394,3.41169661,3009.9,3009.8,5.339]
[1752214510675,4.52169661,3009.9,3009.8,5.339]
[1752214510875,0.55,3009.8,3009.0,0.2467373]
[1752214511075,4.52169661,3009.9,3009.0,0.2467373]
[1752214511076,0.1656,3009.3,3009.0,0.002]
[1752214511394,1.5713,3009.2,3009.1,5.329]
[1752214512468,0.1656,3009.1,3009.0,0.002]
[1752214512675,0.1656,3009.1,3009.0,5.331]
[1752214512979,0.1656,3009.1,3009.0,0.002]
[1752214513302,1.99929,3009.1,3009.0,5.328]
[1752214515073,1.8256,3009.1,3009.0,5.328]
[1752214515772,2.9356,3009.1,3009.0,5.328]
[1752214516103,4.5423,3009.1,3009.0,0.002]
[1752214518074,5.6523,3009.1,3009.0,0.002]
[1752214520595,6.7623,3009.1,3009.0,0.002]
[1752214520795,7.43853,3009.1,3009.0,0.002]
[1752214522896,8.54853,3009.1,3009.0,0.002]
[1752214523691,7.99853,3009.1,3009.0,0.002]
[1752214523908,7.3223,3009.1,3009.0,0.002]
[1752214524193,7.8723,3009.1,3009.0,0.002]
[1752214524943,1.6142,3008.9,3008.1,5.328]
[1752214525149,0.1656,3007.9,3007.8,0.002]
[1752214525423,0.1656,3007.9,3007.8,15.33]
[1752214525840,0.1656,3007.9,3007.8,10.002]
[1752214526041,1.7798,3007.9,3007.8,0.002]
[1752214526242,2.50778,3007.9,3007.8,0.002]
[1752214526539,2.3298,3007.9,3007.8,0.002]
[1752214526893,0.1656,3007.9,3007.8,0.002]
[1752214527930,1.2756,3007.9,3007.8,0.002]
[1752214528838,1.11,3007.9,3007.8,0.002]
[1752214528997,1.11,3007.9,3007.8,0.3559]
[1752214530141,2.22,3007.9,3007.8,0.3559]
[1752214530518,2.22,3007.9,3007.8,0.5215]
[1752214532263,2.22,3007.9,3007.8,0.55474689]
[1752214532757,3.33,3007.9,3007.8,1.10474689]
[1752214532918,3.33,3007.9,3007.8,1.0715]
[1752214533925,3.33,3007.9,3007.8,13.0645]
[1752214534334,2.9761,3007.9,3007.8,13.0645]
[1752214535115,4.0861,3007.9,3007.8,23.7205]
[1752214535372,3.9200742,3007.9,3007.8,28.53313083]
[1752214535550,0.59963085,3007.9,3007.8,28.53313083]
[1752214535868,0.43360505,3007.9,3007.8,24.21953183]
[1752214536145,0.26757925,3007.9,3007.8,24.21953183]
[1752214536351,0.26757925,3007.9,3007.8,26.31833183]
[1752214536523,0.10155345,3007.9,3007.8,26.31833183]
[1752214536728,0.10155345,3007.9,3007.8,27.25334183]
[1752214536950,1.11,3008.9,3008.1,0.55]
[1752214537150,1.11,3008.9,3008.3,0.55]
[1752214537357,1.11,3008.9,3008.8,0.1656]
[1752214537540,2.22,3008.9,3008.8,20.8206]
[1752214539434,2.22,3008.9,3008.8,10.1656]
[1752214539770,2.22,3008.9,3008.8,15.1285]
[1752214539968,3.33,3008.9,3008.8,15.1285]
[1752214542054,3.33,3008.9,3008.8,15.62753183]
[1752214542239,3.33,3008.9,3008.8,15.1285]
[1752214542443,4.44,3008.9,3008.8,15.1285]
[1752214542842,4.44,3008.9,3008.8,9.8025]
[1752214543067,4.44,3008.9,3008.8,15.1275]
[1752214543786,4.44,3008.9,3008.8,9.8025]
[1752214544075,4.44,3008.9,3008.8,15.1275]
[1752214544868,5.55,3008.9,3008.8,15.1275]
[1752214546292,5.55,3008.9,3008.8,18.16953183]
[1752214547077,5.55,3008.9,3008.8,18.50173183]
[1752214547379,6.66,3008.9,3008.8,18.50173183]
[1752214547543,6.66,3008.9,3008.8,18.0027]
[1752214549874,7.77,3008.9,3008.8,18.0027]
[1752214551490,7.77,3008.9,3008.8,12.3455]
[1752214551654,7.77,3008.9,3008.8,15.1255]
[1752214552292,8.88,3008.9,3008.8,15.1255]
[1752214553263,8.88,3008.9,3008.8,5.4886]
[1752214553462,8.88,3008.9,3008.8,0.1656]
[1752214553659,10.323,3008.9,3008.8,0.1656]
[1752214554197,10.323,3008.9,3008.8,5.4876]
[1752214554360,8.88,3008.9,3008.8,5.4876]
[1752214554563,9.99,3008.9,3008.8,5.4876]
[1752214556877,1.6339,3008.8,3008.6,7.965]
[1752214557080,1.6339,3008.8,3008.7,5.322]
[1752214557301,1.6339,3008.8,3008.6,7.965]
[1752214557485,0.1656,3008.7,3008.6,7.965]
[1752214557684,1.6832,3008.7,3008.6,13.287]
[1752214558005,1.5176,3008.7,3008.6,13.287]
[1752214558221,1.5176,3008.7,3008.6,23.287]
[1752214559485,2.6276,3008.7,3008.6,23.287]
[1752214559997,4.55036,3008.7,3008.6,7.965]
[1752214560237,4.55036,3008.7,3008.6,13.287]
[1752214560992,4.55036,3008.7,3008.6,13.23028909]
[1752214561372,4.55036,3008.7,3008.6,13.22928909]
[1752214561572,4.00036,3008.7,3008.6,13.22928909]
[1752214561910,3.7376,3008.7,3008.6,23.39488909]
[1752214562602,2.22,3008.7,3008.6,23.39488909]
[1752214564313,3.33,3008.7,3008.6,23.39488909]
[1752214565225,3.33,3008.7,3008.6,34.53152534]
[1752214566721,4.44,3008.7,3008.6,34.53152534]
[1752214566921,4.44,3008.7,3008.6,35.08152534]
[1752214568134,11.1,3008.9,3008.8,0.55]
[1752214568346,11.1,3008.9,3008.8,15.87]
[1752214568832,2.8451319,3008.9,3008.8,18.4925485]
[1752214569003,5.55,3009.1,3008.9,10.0]
[1752214569193,2.22,3009.9,3009.2,0.55]
[1752214569409,2.22,3009.9,3009.6,10.0]
[1752214569699,2.22,3009.9,3009.8,10.1656]
[1752214571918,3.33,3009.9,3009.8,10.1656]
[1752214572519,3.33,3009.9,3009.8,5.4836]
[1752214573702,5.306,3009.9,3009.8,0.40902198]
[1752214573901,5.306,3009.9,3009.8,5.72702198]
[1752214574232,6.416,3009.9,3009.8,5.72702198]
[1752214574406,6.416,3009.9,3009.8,0.40902198]
[1752214574611,6.416,3009.9,3009.8,5.72702198]
[1752214576338,5.972,3009.9,3009.8,5.72702198]
[1752214576717,7.082,3009.9,3009.8,5.72702198]
[1752214578733,5.55,3009.9,3009.8,5.72702198]
[1752214579163,6.66,3009.9,3009.8,5.72702198]
[1752214580947,6.66,3009.9,3009.8,15.72702198]
[1752214581540,7.77,3009.9,3009.8,15.72702198]
[1752214581745,7.771,3009.9,3009.8,15.72702198]
[1752214583247,9.4092,3009.9,3009.8,10.40902198]
[1752214583552,10.46112,3009.9,3009.8,15.72402198]
[1752214583768,10.46112,3009.9,3009.8,5.72402198]
[1752214583922,11.57112,3009.9,3009.8,5.72402198]
[1752214584123,11.57112,3009.9,3009.8,0.40902198]
[1752214584323,11.57112,3009.9,3009.8,5.72402198]
[1752214586159,8.881,3009.9,3009.8,5.72402198]
[1752214586462,11.6101,3009.9,3009.8,5.72402198]
[1752214586633,11.6101,3009.9,3009.8,0.40902198]
[1752214586839,11.6101,3009.9,3009.8,5.72302198]
[1752214587227,9.991,3009.9,3009.8,15.72302198]
[1752214587860,9.991,3009.9,3009.8,10.40902198]
[1752214588160,11.1011,3009.9,3009.8,15.72302198]
[1752214588357,9.991,3009.9,3009.8,15.72302198]
[1752214588732,11.101,3009.9,3009.8,15.72302198]
[1752214588926,11.101,3009.9,3009.8,15.72202198]
[1752214589528,11.101,3009.9,3009.8,10.40902198]
[1752214589734,12.6188,3009.9,3009.8,15.55642198]
[1752214590335,13.99168,3009.9,3009.8,15.55642198]
[1752214591284,15.10168,3009.9,3009.8,15.55642198]
[1752214591449,15.10168,3009.9,3009.3,7.964]
[1752214591653,0.55,3009.7,3009.3,7.964]
[1752214591864,0.55,3009.7,3009.4,5.312]
[1752214591865,0.55,3009.5,3009.4,5.312]
[1752214592053,1.859,3009.5,3009.4,5.312]
[1752214593454,1.59,3009.5,3009.4,15.312]
[1752214593657,2.7,3009.5,3009.4,15.312]
[1752214593854,1.11,3009.5,3009.4,15.312]
[1752214596149,2.22,3009.5,3009.4,15.312]
[1752214598682,3.33,3009.5,3009.4,24.27309423]
[1752214598976,3.33,3009.5,3009.4,26.26609423]
[1752214599975,3.33,3009.5,3009.4,25.85914573]
[1752214600177,3.164053,3009.5,3009.4,29.58309423]
[1752214600343,3.164053,3009.5,3009.4,29.94309634]
[1752214600555,12.211,3009.9,3009.8,1.993]
[1752214600747,12.211,3009.9,3009.8,20.619]
[1752214600945,13.155053,3009.9,3009.8,21.169]
[1752214601175,13.155053,3009.9,3009.8,19.176]
[1752214601381,12.989106,3009.9,3009.8,19.176]
[1752214601683,12.989106,3009.9,3009.8,19.3416]
[1752214601882,12.82325202,3009.9,3009.8,19.3416]
[1752214603575,13.93325202,3009.9,3009.8,19.3416]
[1752214604077,13.93325202,3009.9,3009.8,32.960093]
[1752214604652,13.93325202,3009.9,3009.8,19.3416]
[1752214604848,13.93325202,3009.9,3009.8,14.0316]
[1752214605181,13.93325202,3009.9,3009.8,19.3396]
[1752214606084,15.04325202,3009.9,3009.8,19.3396]
[1752214606955,14.87739804,3009.9,3009.8,19.3396]
[1752214607152,14.87739804,3009.9,3009.8,29.1795655]
[1752214607479,14.71154406,3009.9,3009.8,23.4189485]
[1752214607661,14.54569008,3009.9,3009.8,23.4189485]
[1752214607846,14.54569008,3009.9,3009.8,19.7465485]
[1752214608046,14.3798361,3009.9,3009.8,19.7465485]
[1752214608480,15.32398212,3009.9,3009.8,19.7465485]
[1752214608684,15.32398212,3009.9,3009.8,6.0216]
[1752214609372,15.15815015,3009.9,3009.8,6.0216]
[1752214609572,15.15815015,3009.9,3009.8,6.4285485]
[1752214609771,14.99231818,3009.9,3009.8,6.4285485]
[1752214609971,14.99231818,3009.9,3009.8,6.0216]
[1752214610312,14.99231818,3009.9,3009.8,16.4285485]
[1752214610313,14.82648621,3009.9,3009.8,16.4285485]
[1752214610697,14.66065424,3009.9,3009.8,16.4285485]
[1752214610879,15.77065424,3009.9,3009.8,16.4285485]
[1752214611078,15.60482227,3009.9,3009.8,18.4215485]
[1752214611453,15.4389903,3009.9,3009.8,35.1781605]
[1752214611659,1.11,3010.1,3010.0,42.543]
[1752214611967,1.88516803,3010.2,3010.1,25.308024]
[1752214612163,0.37593432,3010.2,3010.1,25.7149725]
[1752214612579,0.37593432,3010.2,3010.1,42.0619775]
[1752214612580,0.21010235,3010.2,3010.1,42.0619775]
[1752214612876,0.21010235,3010.2,3010.1,41.5950525]
[1752214613079,0.04427038,3010.2,3010.1,41.5950525]
[1752214613269,1.15427038,3010.2,3010.1,41.5950525]
[1752214613591,0.98843841,3010.2,3010.1,42.9499485]
[1752214613794,0.99260644,3010.2,3010.1,50.8799485]
[1752214613954,0.99260644,3010.2,3010.1,54.3789485]
[1752214614163,0.94516803,3010.9,3010.3,32.543]
[1752214614399,0.94516803,3010.9,3010.8,12.543]
[1752214614695,0.94516803,3010.9,3010.8,33.9026]
[1752214614696,0.77933606,3010.9,3010.8,33.9026]
[1752214615067,0.61354478,3010.9,3010.8,33.9026]
[1752214615393,0.61354478,3010.9,3010.8,41.984565]
[1752214615394,0.4477535,3010.9,3010.8,41.984565]
[1752214615581,0.4477535,3010.9,3010.8,41.638477]
[1752214615758,1.39196222,3010.9,3010.8,41.638477]
[1752214615957,1.39196222,3010.9,3010.8,41.88216532]
[1752214616187,1.22617094,3010.9,3010.8,41.88216532]
[1752214616390,1.22617094,3010.9,3010.8,34.14628832]
[1752214616615,1.06037966,3010.9,3010.8,55.02392932]
[1752214616824,1.06037966,3010.9,3010.8,55.25195532]
[1752214617003,3.16520872,3011.1,3011.0,29.630997]
[1752214617204,3.16520872,3011.1,3011.0,34.932997]
[1752214617392,2.99941744,3011.1,3011.0,29.965661]
[1752214617824,2.83362616,3011.1,3011.0,29.965661]
[1752214618317,3.77783488,3011.1,3011.0,30.297861]
[1752214618518,3.6120436,3011.1,3011.0,40.82848]
[1752214618719,3.6120436,3011.1,3011.0,22.385137]
[1752214618894,3.6120436,3011.1,3011.0,18.0106]
[1752214619216,3.44625232,3011.1,3011.0,38.902476]
[1752214619519,3.28046104,3011.1,3011.0,38.902476]
[1752214619688,3.28046104,3011.1,3011.0,29.577]
[1752214619888,3.28046104,3011.1,3011.0,20.7806]
[1752214620381,3.11466976,3011.1,3011.0,47.3313895]
[1752214620733,4.05887848,3011.1,3011.0,18.0106]
[1752214620912,4.05887848,3011.1,3011.0,12.7086]
[1752214621114,4.05887848,3011.1,3011.0,18.0086]
[1752214621436,4.05887848,3011.1,3011.0,2.1586]
[1752214621732,4.05887848,3011.1,3011.0,5.4656]
[1752214622613,4.05887848,3011.1,3011.0,0.1656]
[1752214623122,5.16887848,3011.1,3011.0,5.4646]
[1752214624300,5.95097633,3011.1,3011.0,0.1656]
[1752214624531,5.95097633,3011.1,3011.0,5.4646]
[1752214624734,7.52097633,3011.1,3011.0,0.1656]
[1752214624924,5.16887848,3011.1,3011.0,5.4646]
[1752214625323,6.27887848,3011.1,3011.0,5.4646]
[1752214628338,6.27887848,3011.1,3011.0,0.1656]
[1752214628541,8.92277848,3011.1,3011.0,15.4646]
[1752214629523,7.38887848,3011.1,3011.0,15.4646]
[1752214630505,7.38887848,3011.1,3011.0,17.4576]
[1752214630723,8.93737848,3011.1,3011.0,10.596]
[1752214630907,10.04737848,3011.1,3011.0,10.596]
[1752214633333,11.15737848,3011.1,3011.0,10.596]
[1752214635745,12.26737848,3011.1,3011.0,10.596]
[1752214637430,13.60521633,3011.1,3011.0,10.596]
[1752214638211,14.71521633,3011.1,3011.0,10.596]
[1752214638610,14.71521633,3011.1,3011.0,20.596]
[1752214640133,14.71521633,3011.1,3011.0,10.596]
[1752214640311,14.71521633,3011.1,3011.0,8.9294]
[1752214640516,15.82521633,3011.1,3011.0,8.9294]
[1752214642948,16.93521633,3011.1,3011.0,8.9294]
[1752214645318,18.04521633,3011.1,3011.0,8.9294]
[1752214645632,16.70737848,3011.1,3011.0,9.095]
[1752214647667,16.70737848,3011.1,3011.0,23.1853]
[1752214647668,16.26887848,3011.1,3011.0,23.1853]
[1752214648066,16.26887848,3011.1,3011.0,21.1923]
[1752214648347,16.26887848,3011.1,3011.0,21.1943]
[1752214648529,16.26887848,3011.1,3011.0,20.6443]
[1752214648925,16.26887848,3011.1,3011.0,23.1873]
[1752214649125,3.73996179,3011.1,3011.0,23.5946774]
[1752214649836,3.5740847,3011.1,3011.0,23.5946774]
[1752214650022,4.6840847,3011.1,3011.0,23.5946774]
[1752214650222,4.51820761,3011.1,3011.0,23.5946774]
[1752214650651,4.35233052,3011.1,3011.0,23.5946774]
[1752214651151,4.18645343,3011.1,3011.0,23.5946774]
[1752214651525,4.02057634,3011.1,3011.0,23.5946774]
[1752214651949,1.11,3011.9,3011.1,12.543]
[1752214652161,1.11,3011.9,3011.6,1.5654]
[1752214652332,2.22,3011.7,3011.6,22.51338434]
[1752214652667,2.22,3011.7,3011.6,23.0301794]
[1752214652835,2.22,3011.7,3011.6,23.4375568]
[1752214653036,2.22,3011.7,3011.6,26.7515568]
[1752214653244,2.0542285,3011.7,3011.6,28.7445568]
[1752214653545,1.5203,3013.4,3012.0,1.993]
[1752214653745,1.5203,3013.7,3012.6,1.5385]
[1752214653944,1.5203,3013.7,3012.9,0.55]
[1752214654200,1.5321,3014.1,3012.9,23.1965308]
[1752214654338,1.5321,3014.1,3013.1,0.55]
[1752214654546,1.5321,3014.1,3013.3,10.0]
[1752214654737,1.5321,3014.1,3013.5,10.0]
[1752214654960,1.5321,3014.1,3013.7,10.0]
[1752214655151,1.5321,3014.1,3013.9,10.0]
[1752214655345,1.5321,3014.1,3014.0,20.582]
[1752214656462,1.5321,3014.1,3014.0,20.82834473]
[1752214657166,2.6421,3014.1,3014.0,20.82834473]
[1752214659371,1.11,3014.1,3014.0,20.82834473]
[1752214659573,2.22,3014.1,3014.0,20.82834473]
[1752214661895,3.16431804,3014.1,3014.0,26.56174473]
[1752214662211,0.24931821,3016.6,3014.8,0.55]
[1752214662375,0.24931821,3016.6,3015.8,0.55]
[1752214662574,1.11,3016.9,3016.1,0.55]
[1752214662818,1.11,3016.9,3016.1,10.0]
[1752214663018,1.11,3016.9,3016.1,20.657]
[1752214663483,1.11,3016.9,3016.1,20.907362]
[1752214663682,1.11,3016.9,3016.1,21.072962]
[1752214664276,48.13287526,3016.2,3016.1,21.072962]
[1752214665001,49.72957526,3016.2,3014.8,0.994004]
[1752214665196,49.72957526,3016.2,3015.0,10.0]
[1752214665603,49.72957526,3016.2,3015.1,5.327]
[1752214665996,48.13287526,3016.2,3015.1,5.327]
[1752214666216,4.97069936,3016.1,3015.2,10.0]
[1752214666420,4.97069936,3016.1,3015.4,10.0]
[1752214666618,4.97069936,3016.1,3015.6,10.0]
[1752214666822,6.08069936,3016.1,3015.7,5.325]
[1752214667029,6.08069936,3016.1,3015.4,10.0]
[1752214667030,6.08069936,3016.1,3015.8,5.325]
[1752214667211,2.75454297,3016.0,3015.9,15.323]
[1752214667822,6.08069936,3016.1,3015.9,15.323]
[1752214667823,2.67,3016.1,3016.0,10.0]
[1752214668131,2.67,3016.1,3016.0,0.25298475]
[1752214668331,2.67,3016.1,3015.9,5.323]
[1752214668913,2.67,3016.1,3016.0,5.324]
[1752214669122,3.78,3016.1,3016.0,5.324]
[1752214669318,7.19069936,3016.1,3016.0,5.324]
[1752214670100,7.19069936,3016.1,3016.0,5.57663711]
[1752214671343,7.19069936,3016.1,3016.0,5.57363711]
[1752214671630,2.22,3016.1,3016.0,5.57363711]
[1752214671837,3.33,3016.1,3016.0,6.65643832]
[1752214672023,3.33,3016.1,3016.0,16.65643832]
[1752214672202,3.33,3016.1,3016.0,16.12363711]
[1752214672629,3.33,3016.1,3016.0,16.29112906]
[1752214673906,3.33,3016.1,3016.0,16.12363711]
[1752214674435,4.44,3016.1,3016.0,16.12363711]
[1752214675103,4.44,3016.1,3016.0,16.28923711]
[1752214675317,4.44,3016.1,3016.0,15.73923711]
[1752214676114,6.77680888,3016.1,3016.0,5.73923711]
[1752214676806,7.88680888,3016.1,3016.0,5.73923711]
[1752214677043,5.55,3016.1,3016.0,5.73923711]
[1752214677210,5.55,3016.1,3016.0,6.28923711]
[1752214677410,5.55,3016.1,3016.0,16.28923711]
[1752214677827,5.55,3016.1,3016.0,18.28223711]
[1752214679207,6.66,3016.1,3016.0,18.28223711]
[1752214679738,6.66,3016.1,3016.0,18.81503832]
[1752214680240,6.49446121,3016.1,3016.0,18.81503832]
[1752214680437,6.32892242,3016.1,3016.0,18.81503832]
[1752214680843,6.16338363,3016.1,3016.0,18.81503832]
[1752214681351,5.99784484,3016.1,3016.0,18.81503832]
[1752214681846,6.94230605,3016.1,3016.0,18.28223711]
[1752214682026,6.77676726,3016.1,3016.0,18.28223711]
[1752214682625,6.77676726,3016.1,3016.0,16.28923711]
[1752214682825,6.61122847,3016.1,3016.0,16.28923711]
[1752214683215,6.44568968,3016.1,3016.0,16.28923711]
[1752214684054,7.55568968,3016.1,3016.0,16.28923711]
[1752214685753,7.55568968,3016.1,3016.0,15.73923711]
[1752214686254,12.47378904,3016.1,3016.0,11.03923711]
[1752214686446,10.17308968,3016.1,3016.0,11.03923711]
[1752214688258,10.17308968,3016.1,3016.0,21.03923711]
[1752214688643,8.66568968,3016.1,3016.0,21.03923711]